Cogmind - Beta 17.1 @@@ ROGUE MODE // 2026.09.19 @ 22:33:31 Player: Somberlain Result: Destroyed by G-34 Mercenary with Small Laser Performance ------------- Evolutions (1) 500 Regions Visited (2) 400 Robots Destroyed (18) 90 Value Destroyed (401) 401 Prototype IDs (2) 40 Alien Tech Used (0) 0 Bonus (0) 0 TOTAL SCORE: 1431 Bonus ------- None Cogmind --------- Core Integrity 0/400 Matter 246/300 Energy 95/100 System Corruption 0% Temperature Hot (232) Movement Core (250) Ox4 Location -9/Materials Parts ------- > --- POWER (1) -------- (None) > --- PROPULSION (2) --- (None) > --- UTILITY (4) ------ Medium Storage Unit > --- WEAPON (2) ------- Grenade Launcher > --- INVENTORY (10) --- Light Nuclear Core Medium Laser Mining Claw Peak State ------------ > --- POWER ------------ Improved Ion Engine > --- PROPULSION ------- Light Treads Light Treads > --- UTILITY ---------- Improved Heat Sink Medium Storage Unit Medium Armor Plating Medium Armor Plating > --- WEAPON ----------- Medium Laser Particle Gun > --- INVENTORY -------- Ion Engine Light Nuclear Core Medium Laser Medium Laser Beam Cannon Grenade Launcher Mining Claw [Rating: 15] Favorites ----------- Power Ion Engine Engine Ion Engine Propulsion Light Treads Treads Light Treads Utility Medium Storage Unit Device Improved Heat Sink Storage Medium Storage Unit Protection Medium Armor Plating Weapon Small Laser Energy Gun Small Laser Energy Cannon Beam Cannon Launcher Grenade Launcher Build | -11 -10 -9 ------- Run | Yrd Mat Mat Slots Evolved 2 | . . 2 Power . | . . . Propulsion . | . . . Utility 2 | . . 2 Weapon . | . . . Parts Attached 18 | 6 6 6 Power 3 | 1 1 1 Engine 3 | 1 1 1 Core . | . . . Reactor . | . . . Propulsion 3 | 2 1 . Treads 3 | 2 1 . Leg . | . . . Wheel . | . . . Hover . | . . . Flight . | . . . Utility 5 | 1 2 2 Device 1 | . 1 . Storage 2 | 1 1 . Processor . | . . . Hackware . | . . . Protection 2 | . . 2 Artifact . | . . . Weapon 7 | 2 2 3 Energy Gun 5 | 2 2 1 Energy Cannon 1 | . . 1 Ballistic Gun . | . . . Ballistic Cannon . | . . . Launcher 1 | . . 1 Special Weapon . | . . . Impact Weapon . | . . . Slashing Weapon . | . . . Piercing Weapon . | . . . Special Melee Weapon . | . . . Unidentified Prototypes . | . . . Parts Lost 13 | . 2 11 Power 3 | . 1 2 Propulsion 3 | . 1 2 Utility 3 | . . 3 Weapon 4 | . . 4 Highest Loss Streak 10 | . 2 10 To Critical Strikes . | . . . Average Backups 3 | . 3 6 Power . | . . 1 Propulsion . | . . . Utility . | . . . Weapon 2 | . 2 4 Tool/Special . | . . . Unused Backups 3 | . . 3 Power 1 | . . 1 Propulsion . | . . . Utility . | . . . Weapon 2 | . . 2 Tool/Special . | . . . Average Slot Usage (%) 85 | . 89 77 Engine 11 | . 11 10 Treads 22 | . 26 13 Device 7 | . 7 9 Storage 13 | . 14 11 Protection 4 | . . 13 Energy Gun 25 | . 28 19 Peak Build Rating 15 | 6 10 15 Average Rating 8 | 4 7 11 On Entrance 5 | . 6 10 Avg Prop Armor Cover (%) . | . . . Naked Turns . | . . . Heaviest Build 37 | 12 21 37 Greatest Support 40 | 40 40 40 Greatest Overweight (x) 1 | . . 1 Average Overweight (x) . | . . . Largest Inventory Capacity 10 | 8 10 10 Average Capacity 9 | 7 9 10 Most Carried 7 | . 6 7 Average Carried 3 | . 3 6 Final Capacity 10 | 8 10 10 Final Carried 6 | . 6 3 Class Distribution -------------------- 53% | Mutant 46% | Scavenger-Mutant Dominant Class ---------------- Scavenger-Mutant | -10/Materials Mutant | -9/Materials Resources | -11 -10 -9 ----------- Run | Yrd Mat Mat Matter Collected 335 | 180 130 25 Remotely . | . . . Salvage Created 590 | . 395 195 Parts 25 | . 22 3 Haulers Intercepted 1 | . 1 . Recyclers Shooed 1 | . . 1 Parts Field Recycled . | . . . Retrieved Matter . | . . . Parts Self-Destructed . | . . . Prevented . | . . . Parts Restored . | . . . Kills | -11 -10 -9 ------- Run | Yrd Mat Mat Combat Hostiles Destroyed 14 | . 9 5 Guns 12 | . 9 3 Cannons 1 | . . 1 Classes Destroyed 7 | . 6 1 Tunneler 1 | . 1 . Hauler 1 | . 1 . Recycler 1 | . 1 . Watcher 1 | . 1 . Swarmer 6 | . 6 . Grunt 7 | . 3 4 Brawler 1 | . . 1 Best Kill Streak 7 | . 7 2 Combat Bots Only 6 | . 6 2 Max Kills in Single Turn 2 | . 2 1 Gunslinging 1 | . 1 . Exploded . | . . . Melee . | . . . Uniques/NPCs Destroyed . | . . . Combat | -11 -10 -9 -------- Run | Yrd Mat Mat Hostile Shots Fired 240 | . 109 131 Missed 48 | . 24 24 Hits 192 | . 85 107 Melee 2 | . . 2 Projectile 190 | . 85 105 Critical Strikes 2 | . 1 1 Damage Taken 2037 | . 739 1298 Core 584 | . 174 410 Absorbed by Shields . | . . . Core Remaining (%) 65 | 100 30 . Volleys Fired 77 | . 41 36 Largest 2 | . 2 2 Hottest 115 | . 115 115 Shots Fired 141 | . 82 59 Gun 132 | . 82 50 Cannon 8 | . . 8 Launcher 1 | . . 1 Special . | . . . Kinetic . | . . . Thermal 140 | . 82 58 Explosive 1 | . . 1 Electromagnetic . | . . . Robot Hit Streak 15 | . 6 15 Robot Miss Streak 6 | . 2 6 Penetration Max . | . . . Secondary Targets 1 | . 1 . Max Gunslinging Chain 1 | . 1 . Shots Hit Robots 87 | . 47 40 Core Hits 33 | . 21 12 Critical Kills . | . . . Critical Parts Destroyed . | . . . Critical Strikes 3 | . . 3 Burn 3 | . . 3 Melee Attacks . | . . . Impact . | . . . Slashing . | . . . Piercing . | . . . Sneak Attacks . | . . . Combat Hostiles . | . . . Follow-up Attacks . | . . . Damage Inflicted 1267 | . 631 636 Guns 1143 | . 631 512 Cannons 124 | . . 124 Explosions . | . . . Melee . | . . . Ramming . | . . . Kinetic . | . . . Thermal 1267 | . 631 636 Explosive . | . . . Electromagnetic . | . . . Impact . | . . . Slashing . | . . . Piercing . | . . . Highest Corruption 1 | . 1 . Average Corruption 1 | . 1 . Corruption Purged . | . . . Corruption Blocked . | . . . Overload Shots . | . . . Overflow Damage 8 | . . 8 Projectiles 8 | . . 8 Explosions . | . . . Melee . | . . . Knockbacks . | . . . Impact . | . . . Kinetic . | . . . Secondary . | . . . Self-Inflicted Damage . | . . . Shots . | . . . Rammed . | . . . Targets Rammed . | . . . Kicked . | . . . Crushed . | . . . Highest Temperature 333 | . 180 333 Average Temperature 106 | . 54 167 Received Heat Transfer 792 | . 84 708 Effects 2 | . . 2 Energy Bleed 1 | . . 1 Matter Decay 1 | . . 1 Siege Activations . | . . . Martial Activations . | . . . Shielding Activations . | . . . Robots Disrupted . | . . . Combat Hostiles . | . . . Robots Corrupted . | . . . Combat Hostiles . | . . . Parts Fried . | . . . Impact Corruptions . | . . . Robots Melted 1 | . . 1 Combat Hostiles 1 | . . 1 Parts Melted 5 | . 1 4 Heat Transferred 3220 | . 1407 1813 Parts Sabotaged . | . . . Parts Stolen . | . . . Parts Stripped . | . . . Power Chain Reactions . | . . . Alert | -11 -10 -9 ------- Run | Yrd Mat Mat Maximum Alert Level . | . . . Low Security (%) 100 | 100 100 100 Level 1 . | . . . Level 2 . | . . . Level 3 . | . . . Level 4 . | . . . Level 5 . | . . . High Security . | . . . Max Security . | . . . Peak Influence 150 | . 150 81 Initial 22 | . . 22 Average 53 | . 74 23 Influence Increases 454 | . 303 151 Destroy 0b10 Robot/C 280 | . 180 100 Destroy 0b10 Robot/NC 20 | . 20 . Destroy Leader 64 | . 44 20 Successful Hack 14 | . 14 . Disable Machine 15 | . 15 . Destroy Structure 1 | . . 1 Lose Combat Pursuer 60 | . 30 30 Influence Decreases 454 | . 248 206 Entered New Map 33 | . . 33 Time Decay 320 | . 228 92 Lost Part 101 | . 20 81 Squads Dispatched 2 | . 2 . Investigation . | . . . Extermination . | . . . Reinforcement 2 | . 2 . Assault . | . . . Garrison . | . . . Intercept . | . . . Searches Triggered . | . . . Construction Impeded . | . . . Haulers Reinforced . | . . . Active Scanning Responses . | . . . Cargo Convoy Interrupts . | . . . Stealth | -11 -10 -9 --------- Run | Yrd Mat Mat Distress Signals 2 | . 1 1 Communications Jammed . | . . . Distress Signals . | . . . Times Spotted 29 | . 18 11 Peak Tracking Total 6 | . 6 6 Tactical Retreats 2 | . 1 1 Traps | -11 -10 -9 ------- Run | Yrd Mat Mat Traps Triggered 1 | . 1 . Indirectly . | . . . Trap Hack Attempts . | . . . Triggered . | . . . Disarmed . | . . . Reprogrammed . | . . . Reused . | . . . Traps Extracted . | . . . Installed . | . . . Triggered . | . . . Machines | -11 -10 -9 ---------- Run | Yrd Mat Mat Machines Disabled 1 | . 1 . Max in Single Turn 1 | . 1 . Machines Repaired . | . . . Machines Dismantled . | . . . Machines Sabotaged . | . . . Overloaded Fab Kills . | . . . Hacking | -11 -10 -9 --------- Run | Yrd Mat Mat Machines Accessed 6 | . 5 1 Terminals 5 | . 4 1 Fabricators . | . . . Repair Stations 1 | . 1 . Recycling Units . | . . . Scanalyzers . | . . . Garrison Access . | . . . Total Hacks 15 | . 12 3 Successful 5 | . 5 . Failed 10 | . 7 3 Catastrophic 2 | . 2 . Database Lockouts . | . . . Manual 14 | . 11 3 Terminals 14 | . 11 3 Fabricators . | . . . Repair Stations 1 | . 1 . Recycling Units . | . . . Scanalyzers . | . . . Garrison Access . | . . . Terminal Hacks 5 | . 5 . Robot Analysis 2 | . 2 . Prototype ID Bank 1 | . 1 . Branch Access Points 1 | . 1 . Recall Reinforcements 1 | . 1 . Fabricator Hacks . | . . . Repair Station Hacks . | . . . Recycling Unit Hacks . | . . . Scanalyzer . | . . . Garrison Access Hacks . | . . . Unauthorized Hacks . | . . . Terminals . | . . . Fabricators . | . . . Repair Stations . | . . . Recycling Units . | . . . Scanalyzers . | . . . Garrison Access . | . . . Data Cores Recovered . | . . . Used . | . . . Hacking Detections 6 | . 5 1 Full Trace Events . | . . . Feedback Events . | . . . Feedback Blocked . | . . . Robot Schematics Acquired . | . . . Robots Built . | . . . Authchips . | . . . Time . | . . . Total Robot Build Rating . | . . . Part Schematics Acquired . | . . . Parts Built . | . . . Authchips . | . . . Time . | . . . Total Part Build Rating . | . . . Part Studies Acquired . | . . . Parts Repaired . | . . . Time . | . . . Parts Recycled . | . . . Recycled Matter . | . . . Retrieved Matter . | . . . Retrieved Components . | . . . Parts Scanalyzed . | . . . Part Schematics Acquired . | . . . Parts Damaged . | . . . Bothacking | -11 -10 -9 ------------ Run | Yrd Mat Mat Used RIF Installer . | . . . Robots Hacked . | . . . Non-combat . | . . . Combat . | . . . Robot Hacks Applied . | . . . Relay Couplers Released . | . . . Fabnet Peak Effective % . | . . . Robots Rewired . | . . . Allies Hacked . | . . . Hacks Repelled . | . . . Allies | -11 -10 -9 -------- Run | Yrd Mat Mat Total Allies . | . . . Largest Group . | . . . Highest-Rated Group . | . . . Highest-Rated Ally . | . . . Total Orders . | . . . Ally Attacks . | . . . Total Damage . | . . . Kills . | . . . Allies Corrupted . | . . . Allies Melted . | . . . Intel | -11 -10 -9 ------- Run | Yrd Mat Mat Active Infowar (turns) . | . . . Robot Analysis Total 2 | . 2 . Derelict Logs Recovered . | . . . Drone Launches . | . . . Drone Recoveries . | . . . Exploration | -11 -10 -9 ------------- Run | Yrd Mat Mat Turns Passed 942 | 84 595 263 Spaces Moved 407 | 51 276 80 Core 5 | 5 . . Treads 402 | 46 276 80 Legs . | . . . Wheels . | . . . Hover . | . . . Flight . | . . . Fastest Speed 50 | 50 160 160 Average Speed 162 | 149 160 179 Slowest Speed 240 | 160 160 240 Overloaded Moves . | . . . Propulsion Burnouts . | . . . Robots Hopped . | . . . Potential Cave-ins . | . . . Cave-ins Triggered . | . . . Exploration Rate (%) 25 | 4 57 15 Regions Visited 2 Branch Regions . Pre-discovered Areas . | . . . Known Exits Taken . | . . . Unknown Exits Taken 2 | 1 1 . Scrap Searched . | . . . Spaces Dug . | . . . Terrain Destroyed . | . . . Melee . | . . . Projectile . | . . . AOE . | . . . Terrain Rammed . | . . . Walls Destroyed . | . . . Machines Disabled . | . . . Actions | -11 -10 -9 --------- Run | Yrd Mat Mat Total 541 | 56 346 139 Wait 30 | . 14 16 Move 405 | 50 275 80 Hop . | . . . Pick Up 7 | . 7 . Fast Attach 12 | 6 4 2 Attach 4 | . . 4 Detach . | . . . Swap 3 | . 2 1 Drop 3 | . 3 . Fire 77 | . 41 36 Melee . | . . . Ram . | . . . Kick . | . . . Crush . | . . . Escape Stasis . | . . . Rewire . | . . . Trap . | . . . Miscellaneous . | . . . Route ------- -11/Scrapyard -10/Materials (discovered 2 exits: *Mat / Min) -9/Materials History --------- Turn | Location | Event 5 | -11/Scrapyard | Discovered new exit (range 14) 85 | -11/Scrapyard | Entered Materials 236 | -10/Materials | Core integrity fell below 50% 265 | -10/Materials | Identified exit to Mines 336 | -10/Materials | Build established: Mutant 654 | -10/Materials | Discovered new exit (range 8) 661 | -10/Materials | Build established: Scavenger-Mutant 680 | -10/Materials | Entered another Materials area 680 | -9/Materials | Evolved 2 slots: Utility x2 908 | -9/Materials | Core integrity fell below 50% 925 | -9/Materials | Core integrity fell below 20% 943 | -9/Materials | Destroyed by G-34 Mercenary with Small Laser Last Messages --------------- 00911_ K-01 Serf cleans the Fusion Modulator. 00911_ R-06 Scavenger collects Heat Sink. 00914_ K-01 Serf collects debris. 00915_ Destroyed Lgt. Ion Engine. 00916_ K-01 Serf collects debris. 00921_ Overheating: Matter decay (-34). 00922_ K-01 Serf collects debris. 00924_ R-06 Scavenger collects Hammer. 00926_ G-47 Trooper overheating. 00927_ K-01 Serf collects debris. 00929_ Overheating: Energy bleed (-27). 00929_ Ion Engine destroyed. 00929_ Beam Cannon destroyed. 00930_ G-34 Mercenary suffers critical hit (Burn). 00935_ K-01 Serf cleans the Fusion Modulator. 00935_ K-01 Serf cleans the Recycling Unit. 00939_ Med. Laser destroyed. 00941_ K-01 Serf cleans the Recycling Unit. 00942_ K-01 Serf cleans the Fusion Modulator. Map ----- +----------------------------------------------------+ | ????????????????????????????????# # #??? | | ????????????????????????????????# + #??? | | ????????????????????????????????# #########??? | | ????????????????????????????????# #??####????? | | ????????????????????????????????# #? ???? | | ????????????????????????????????# #?""" ???? | | ????????????????????????????????# # """ #?? | | ????????????????????????????????# # """ #?? | | ?????????????????????#??????????# + [ #?? | | ????????????????????? ??#????# # """ #?? | | ?????????????????????? ## ???# # """ #?? | | ????????????????????????? / T?## #?""" ???? | | ???????????????????????????# # #? ???? | | ????????????????????????????# #??####????? | | ????????????????????????????# #??????????? | | ??????????????????????????### #??????????? | | ??????????????????????????+ #####??????? | | ??????????????????????????# #??????? | | ??????????????????????????# #####+# #??????? | | ??????????????????????????# ## #????????? | | ??????????????????????????# ## [#?#??????? | | ????????????# ????######### ## !# #??????? | | ????????????# ###"""T"""#r ## [# #??????? | | ????????????# ## + #??????? | | ????????????# k ## ###??????? | | ???????????????""" []g @""" ##! [!#????????? | | ????????????+ "Y" ]g % """ ## #????????? | | ????????????# %""" ## #????????? | | ????????????# k ####"##????????? | | ????????????# #??#%#?????????? | | ????????????#|! """ """ g #### #?????????? | | ????????????#|! """ """ ###???????? | | ????????????#|[ """ """ #???????? | | ????????????# +???????? | | ????????????# % #???????? | | ????????????? ""? """ """ #???????? | | ?????????????? ???" """ """ %###### #???????? | | ??????????????????" """ """ #????? #???????? | | ?????????????????? ??? #????? #???????? | | ?????????????????????? #????? #???????? | | ?????????????????????? #?????+#???????? | | ??????????????????????? #??????????????? | | ?????????????????????? #??????????????? | | ??????????????????????? #??????????????? | | ????????????????????????? ???????????????? | | ???????????????????????????? ???????????????? | | ?????????????????????????????? ????????????????? | | ???????????????????????????????????????????????? | | ???????????????????????????????????????????????? | | ???????????????????????????????????????????????? | +----------------------------------------------------+ Best States ------------- Heat Dissipation 42 Energy Generation 12 Energy Capacity 265 Matter Stores 300 Matter Capacity 300 Sight Range 16 Terrain Scan Density 10 Armor Coverage 450 Evasion (%) 40 Recoil Reduction 2 Item Schematics ----------------- None Robot Schematics ------------------ None Fabricated ------------ Nothing Repaired ---------- Nothing Studied --------- None Alien Tech Used ----------------- None Achievements -------------- None Challenges ------------ None Game ------ Seed NeutronDispersalWartreads Manual? 0 Play Time 00:08:36 Cumulative 142.6 hours Start 2026.09.19 @ 22:26:50 End 2026.09.19 @ 22:33:31 Sessions 1 Manual Loads 0 Difficulty Rogue Special Mode None Game No. 158 Rogue 158 Adventurer 0 Explorer 0 Win Type - Total 0 Types 0/0/0/0/0/0/0/0/0/0 Lore% 55 Gallery% 57 Achievement% 45 Wizard Run 0 Options --------- Layout 1 ASCII 0 Keyboard 0 Movement Mouse Keybinds 0 Fullscreen 2 Font 24/Smallcaps Map View 50x35 Zoom Use 0% Tactical HUD 1 Map Filters NONE Filters NONE Steam 1 RUN: c68fa847-5cce-4a27-8f15-0a329b778a0d